bitfinex/quotes_ETHUSD_20250215
["timestamp","ask_amount","ask_price","bid_price","bid_amount"]
[1739655496951,0.7988,2691.8,2691.2,8.73463564]
[1739655497152,0.7988,2691.8,2691.3,0.94838154]
[1739655497596,0.7988,2691.8,2691.3,4.66405154]
[1739655499355,0.7988,2691.8,2691.4,3.71544]
[1739655500074,0.7988,2691.8,2691.4,7.4309]
[1739655500604,0.7988,2691.8,2691.4,7.43089]
[1739655500807,0.7988,2691.8,2691.5,0.83792715]
[1739655501302,6.0953,2692.1,2691.6,0.796]
[1739655501473,6.0953,2692.1,2691.6,4.51126]
[1739655502274,6.0953,2692.1,2691.6,3.71526]
[1739655502697,6.0953,2692.1,2691.5,4.55331715]
[1739655503908,0.8153,2692.1,2691.7,3.71508]
[1739655507649,3.8153,2692.1,2691.7,3.71508]
[1739655508649,3.85320637,2692.1,2691.6,3.71519]
[1739655511744,3.03790637,2692.1,2691.6,3.71519]
[1739655511906,3.03790637,2692.1,2691.5,6.5580333]
[1739655511907,0.7951,2692.0,2691.5,3.71533]
[1739655512637,0.7951,2692.0,2691.6,3.71524]
[1739655513133,3.0,2692.1,2691.7,3.7151]
[1739655513341,3.7951,2692.1,2691.7,3.7151]
[1739655515438,3.83300637,2692.1,2691.6,5.09303789]
[1739655516442,3.7951,2692.1,2691.6,5.09303789]
[1739655516742,3.7951,2692.1,2691.6,1.37783789]
[1739655516917,3.7951,2692.1,2691.7,3.71511]
[1739655518411,3.7951,2692.1,2691.7,3.71504]
[1739655523349,0.7951,2692.1,2691.7,4.54124]
[1739655523541,0.7951,2692.1,2691.8,1.37783789]
[1739655525749,0.7951,2692.1,2691.8,5.09276789]
[1739655526742,0.7951,2692.1,2691.8,1.37783789]
[1739655526941,0.7951,2692.1,2691.6,1.37783789]
[1739655526942,1.40640064,2692.1,2691.6,1.37783789]
[1739655528112,0.8275,2691.9,2691.6,1.37783789]
[1739655528287,0.8275,2691.9,2691.4,5.09335789]
[1739655528704,0.8275,2691.9,2691.4,1.37783789]
[1739655529213,1.27138006,2691.9,2691.4,1.37783789]
[1739655529395,0.8275,2691.8,2691.4,1.37783789]
[1739655529789,0.86540637,2691.7,2691.2,1.37783789]
[1739655531619,0.8275,2691.6,2691.0,1.37783789]
[1739655531787,0.8275,2691.4,2691.0,1.37783789]
[1739655533200,0.8275,2691.4,2691.0,5.09388789]
[1739655534628,0.8275,2691.4,2691.2,1.37783789]
[1739655538415,6.1075,2691.6,2691.2,5.09356789]
[1739655538608,6.1075,2691.6,2691.4,1.37783789]
[1739655539307,5.28,2691.6,2691.4,1.37783789]
[1739655539810,5.28,2691.6,2691.4,1.59712714]
[1739655540300,5.28,2691.6,2691.5,3.7154]
[1739655540500,5.28,2691.6,2691.4,5.09326789]
[1739655543117,0.8275,2691.8,2691.4,5.09326789]
[1739655545437,0.8275,2691.8,2691.5,3.71536]
[1739655545634,0.8275,2691.8,2691.4,5.09326789]
[1739655545839,0.8275,2691.8,2691.4,8.80870789]
[1739655546335,0.8275,2691.8,2691.4,5.09326789]
[1739655548435,0.8275,2691.8,2691.4,9.76741768]
[1739655548742,5.28,2691.9,2691.6,1.37783789]
[1739655549038,9.0442,2692.0,2691.6,1.37783789]
[1739655550728,9.0442,2692.0,2691.5,3.71539]
[1739655558660,9.0442,2692.0,2691.4,5.09326789]
[1739655558959,9.0442,2692.0,2691.5,3.7154]
[1739655560665,6.0442,2692.0,2691.6,5.85567789]
[1739655560850,5.28,2692.0,2691.6,5.85567789]
[1739655561049,5.28,2692.0,2691.6,2.14053789]
[1739655563915,5.28,2692.1,2691.6,2.14053789]
[1739655567157,0.03790637,2692.0,2691.6,2.14053789]
[1739655569232,5.28,2692.1,2691.6,5.85578789]
[1739655569928,5.28,2692.2,2691.6,5.85578789]
[1739655570130,6.18778,2692.2,2691.6,5.85578789]
[1739655570728,6.22568637,2692.2,2691.6,5.85578789]
[1739655572590,6.18778,2692.2,2691.6,5.85578789]
[1739655572751,6.22568637,2692.2,2691.6,5.85578789]
[1739655573559,0.7728,2692.7,2692.0,1.37783789]
[1739655573777,3.7728,2692.7,2692.0,1.37783789]
[1739655573945,0.03790637,2692.6,2692.0,1.37783789]
[1739655574970,3.7728,2692.7,2692.0,1.37783789]
[1739655575152,0.90528,2692.6,2692.0,1.37783789]
[1739655575549,3.7728,2692.7,2692.3,0.8044]
[1739655576631,3.81070637,2692.7,2692.3,0.8044]
[1739655577258,3.7728,2692.7,2692.3,0.8044]
[1739655578864,5.28,2692.6,2692.3,0.8044]
[1739655580432,5.28,2692.6,2692.4,1.37783789]
[1739655582646,0.7728,2692.9,2692.4,5.68164768]
[1739655583053,0.7728,2692.9,2692.4,1.96749768]
[1739655583272,0.81070637,2692.9,2692.4,1.96749768]
[1739655585766,0.7728,2692.9,2692.4,1.96749768]
[1739655590784,0.7728,2692.9,2692.4,5.68164768]
[1739655590962,3.0,2693.0,2692.4,5.68164768]
[1739655591166,3.0,2693.0,2692.4,1.96749768]
[1739655593292,3.03790637,2693.0,2692.4,1.96749768]
[1739655593900,8.31790637,2693.0,2692.4,1.96749768]
[1739655594100,8.28,2693.0,2692.4,1.96749768]
[1739655594397,8.28,2693.0,2692.4,5.68164768]
[1739655596377,8.28,2693.0,2692.4,1.96749768]
[1739655596693,8.28,2693.0,2692.4,1.37783789]
[1739655598416,0.03790637,2692.9,2692.4,1.37783789]
[1739655599801,8.28,2693.0,2692.5,0.8234]
[1739655600306,8.28,2693.0,2692.6,1.37783789]
[1739655600470,8.28,2693.0,2692.7,0.8234]
[1739655602905,5.28,2693.0,2692.8,1.37783789]
[1739655605606,5.28,2693.2,2692.8,1.37783789]
[1739655606783,5.28,2693.2,2692.7,1.41492379]
[1739655606988,5.31790637,2693.2,2692.7,0.8234]
[1739655607408,5.28,2693.2,2692.7,0.8234]
[1739655612516,5.28,2693.2,2692.8,1.37783789]
[1739655618984,5.28,2693.2,2692.7,0.8234]
[1739655618985,5.31790637,2693.2,2692.7,0.8234]
[1739655619587,5.24902754,2693.2,2692.7,0.8234]
[1739655621933,5.21112117,2693.2,2692.7,0.8234]
[1739655622842,5.24902754,2693.2,2692.7,0.8234]
[1739655623038,5.21112117,2693.2,2692.7,0.8234]
[1739655627047,5.21112117,2693.2,2692.8,1.37783789]
[1739655627249,5.21112117,2693.2,2692.9,0.7882]
[1739655629121,5.21112117,2693.2,2693.1,0.7882]
[1739655637526,5.21112117,2693.2,2693.1,1.37613679]
[1739655638351,5.21112117,2693.6,2693.1,1.37613679]
[1739655638557,5.21112117,2693.6,2693.2,1.37783789]
[1739655639729,8.21112117,2693.6,2693.2,1.37783789]
[1739655640332,8.21112117,2693.6,2693.0,1.37783789]
[1739655640665,0.7762,2693.4,2692.8,1.37783789]
[1739655641867,0.03790637,2693.3,2692.8,1.37783789]
[1739655642259,0.7762,2693.4,2692.8,1.37783789]
[1739655642652,0.81410637,2693.4,2692.8,1.37783789]
[1739655643861,0.81410637,2693.4,2692.9,0.7654]
[1739655644077,9.17626736,2693.6,2693.0,1.37783789]
[1739655645149,5.21112117,2693.6,2693.2,1.37783789]
[1739655646250,5.21112117,2693.6,2693.4,1.37783789]
[1739655646455,5.21112117,2693.6,2693.4,2.14233789]
[1739655646650,5.21112117,2693.6,2693.4,2.72787368]
[1739655649784,5.21112117,2693.8,2693.4,2.72787368]
[1739655649984,5.21112117,2693.8,2693.6,1.37783789]
[1739655655274,5.96672117,2693.8,2693.6,1.37783789]
[1739655655597,5.21112117,2693.8,2693.6,1.37783789]
[1739655658094,5.21112117,2693.8,2693.7,0.7645]
[1739655662093,5.21112117,2694.2,2693.7,0.7645]
[1739655662298,5.21112117,2694.2,2693.8,1.37783789]
[1739655666503,5.21112117,2694.2,2694.0,1.37783789]
[1739655667026,5.21112117,2694.2,2694.0,2.16193789]
[1739655668344,5.21112117,2694.5,2694.1,0.21619379]
[1739655668542,5.21112117,2694.5,2694.2,1.37783789]
[1739655685845,5.21112117,2694.5,2694.3,0.7533]
[1739655686333,5.21112117,2694.5,2694.4,1.37783789]
[1739655686533,5.21112117,2694.5,2694.4,2.33326268]
[1739655686929,5.21112117,2694.5,2694.4,1.37783789]
[1739655687647,0.0627537,2694.7,2694.6,4.46442]
[1739655687943,0.0627537,2694.7,2694.6,5.87936387]
[1739655688103,0.0627537,2694.7,2694.6,5.84225789]
[1739655690513,0.0627537,2694.7,2694.6,5.87936092]
[1739655690841,0.0627537,2694.7,2694.6,6.93910377]
[1739655692237,0.0627537,2694.7,2694.6,12.16704471]
[1739655692544,0.0627537,2694.7,2694.6,10.75210377]
[1739655693737,0.0627537,2694.7,2694.6,6.93910377]
[1739655695012,0.0627537,2694.7,2694.6,7.48910377]
[1739655696972,0.0627537,2694.7,2694.6,12.85910377]
[1739655697139,0.0627537,2694.7,2694.6,14.23694166]
[1739655697339,0.0627537,2694.7,2694.6,17.23694166]
[1739655699343,0.14,2695.4,2695.3,5.07466]
[1739655699544,0.14,2695.4,2695.3,6.95996389]
[1739655701662,0.14,2695.4,2695.3,8.41511637]
[1739655702174,0.14,2695.4,2695.3,9.16384492]
[1739655703172,0.7558,2696.9,2695.7,3.70961]
[1739655703389,0.7558,2697.3,2696.6,0.8145]
[1739655703592,0.7558,2697.3,2696.6,2.83299037]
[1739655704542,0.1472033,2697.4,2697.2,2.83299037]
[1739655708021,0.1472033,2697.4,2697.3,3.70741]
[1739655708814,0.1472033,2697.4,2697.2,2.83299037]
[1739655709101,0.1472033,2697.4,2697.2,6.54052037]
[1739655709677,0.005,2698.4,2697.4,0.8073]
[1739655709906,0.005,2698.4,2698.3,2.83299037]
[1739655710123,0.005,2698.4,2698.3,6.53902037]
[1739655710271,0.005,2698.4,2698.3,7.34632037]
[1739655710573,0.005,2698.4,2698.3,8.45156941]
[1739655710783,0.005,2698.4,2698.0,2.83299037]
[1739655711616,0.005,2698.4,2698.0,6.53943037]
[1739655711781,0.005,2698.4,2698.0,2.83299037]
[1739655711983,0.005,2698.4,2697.7,2.83299037]
[1739655712428,0.005,2698.4,2697.1,8.323]
[1739655712429,0.8136,2698.3,2697.1,2.83299037]
[1739655713010,0.8136,2698.2,2697.1,2.83299037]
[1739655714049,0.8136,2698.2,2696.8,2.83299037]
[1739655714384,0.85150637,2698.1,2696.8,2.83299037]
[1739655714727,0.8136,2697.9,2696.8,2.83299037]
[1739655714928,0.8136,2697.7,2696.8,2.83299037]
[1739655715123,0.8136,2697.5,2696.8,2.83299037]
[1739655715365,0.03790637,2697.4,2696.8,2.83299037]
[1739655715926,0.8136,2697.5,2696.5,2.83299037]
[1739655716225,5.21112117,2697.5,2696.5,2.83299037]
[1739655716390,1.63471212,2697.4,2696.5,2.83299037]
[1739655718225,1.67261849,2697.4,2696.5,2.83299037]
[1739655718434,1.63471212,2697.4,2696.5,2.83299037]
[1739655720422,0.03790637,2697.3,2696.5,2.83299037]
[1739655720589,1.67261849,2697.4,2696.5,2.83299037]
[1739655720789,0.68837397,2697.3,2696.5,2.83299037]
[1739655721798,0.03790637,2697.2,2696.5,2.83299037]
[1739655722201,0.68837397,2697.3,2696.5,2.83299037]
[1739655722595,1.63471212,2697.4,2696.5,2.83299037]
[1739655722802,0.8136,2697.4,2696.8,6.54100037]
[1739655723031,0.8136,2697.4,2696.9,0.03707509]
[1739655724057,0.8136,2697.4,2696.8,2.83299037]
[1739655724336,0.8136,2697.4,2696.5,2.83299037]
[1739655724504,0.60247212,2697.3,2696.5,2.83299037]
[1739655724704,0.60247212,2697.3,2696.4,8.321]
[1739655724705,0.8068,2697.2,2696.4,8.321]
[1739655725333,1.0738,2697.2,2696.4,8.321]
[1739655725513,0.8068,2697.1,2696.4,8.321]
[1739655725710,0.267,2697.2,2696.4,8.321]
[1739655725711,0.8068,2696.9,2696.4,8.321]
[1739655725906,0.8068,2696.8,2696.4,8.321]
[1739655726133,0.8068,2696.8,2695.9,2.83299037]
[1739655726342,5.21112117,2696.8,2695.9,2.83299037]
[1739655726545,0.8068,2696.7,2695.9,2.83299037]
[1739655726745,0.03790637,2696.6,2695.8,0.370961]
[1739655727041,0.8068,2696.5,2695.8,0.370961]
[1739655727414,0.8068,2696.5,2695.6,2.83299037]
[1739655729040,0.8068,2696.3,2695.6,2.83299037]
[1739655729242,0.8068,2696.3,2695.3,11.15399037]
[1739655729447,0.8068,2696.1,2695.3,11.15399037]
[1739655729739,0.8068,2696.1,2695.3,12.26938941]
[1739655729740,6.01792117,2696.1,2695.3,12.26938941]
[1739655736830,6.01792117,2696.1,2695.4,0.83279804]
[1739655737137,6.01792117,2696.1,2695.4,4.54279804]
[1739655737343,6.01792117,2696.1,2695.4,4.5057]
[1739655737715,6.01792117,2696.1,2695.4,0.7957]
[1739655737920,6.01792117,2696.1,2695.5,1.2191667]
[1739655738548,6.01792117,2696.1,2695.6,0.03709353]
[1739655738856,6.01792117,2696.1,2695.5,1.2191667]
[1739655740364,6.01792117,2696.1,2695.6,6.54266037]
[1739655740555,0.8068,2696.1,2695.6,6.54266037]
[1739655740858,0.8068,2696.1,2695.7,0.77618271]
[1739655741260,0.819,2696.5,2695.9,2.83299037]
[1739655741422,0.819,2696.5,2696.0,3.70918]
[1739655741617,5.21112117,2696.8,2696.1,3.74613625]
[1739655741824,0.819,2697.5,2696.4,3.70862]
[1739655742030,3.819,2697.3,2696.5,2.87007078]
[1739655742242,3.819,2697.3,2696.5,6.57848078]
[1739655742635,0.819,2697.3,2696.5,6.57848078]
[1739655742888,0.819,2697.3,2696.7,3.7082]
[1739655743034,0.819,2697.3,2696.7,3.74527734]
[1739655743229,0.819,2697.3,2696.8,0.37452773]
[1739655744819,2.83299037,2698.0,2696.9,3.70794]
[1739655744820,0.819,2698.0,2696.9,3.70794]
[1739655745056,0.819,2698.0,2697.0,0.03707416]
[1739655745244,0.819,2698.0,2696.9,4.50364]
[1739655745865,0.819,2698.0,2696.9,0.7957]
[1739655747021,0.819,2698.0,2697.0,3.70773]
[1739655747227,0.819,2698.0,2697.1,0.450343]
[1739655747428,0.819,2698.0,2697.2,3.70753]
[1739655747748,0.819,2698.0,2697.1,3.28333337]
[1739655748162,0.819,2698.0,2697.1,6.99095337]
[1739655749254,0.819,2698.0,2697.2,3.70753]
[1739655749440,0.819,2698.0,2697.3,0.7027933]
[1739655751169,0.819,2698.0,2697.1,3.28333337]
[1739655751380,0.819,2698.0,2697.1,3.32040535]
[1739655751669,0.819,2698.0,2697.1,3.28333337]
[1739655752766,0.819,2698.0,2697.1,0.450343]
[1739655753010,0.7669,2697.9,2696.9,0.7957]
[1739655753171,0.7669,2697.9,2697.0,3.74477139]
[1739655753588,0.7669,2697.9,2697.0,3.7077]
[1739655754733,0.7669,2697.9,2697.0,3.74477182]
[1739655754931,0.7669,2697.9,2697.1,0.0370718]
[1739655755078,0.7669,2697.9,2697.2,0.37447718]
[1739655755794,0.7669,2697.9,2696.8,6.54099037]
[1739655756006,0.7669,2697.9,2696.9,3.70786]
[1739655756208,0.7669,2697.9,2696.8,2.83299037]
[1739655756608,0.7669,2697.9,2696.7,0.7931]
[1739655756836,0.7669,2697.8,2696.6,3.70827]
[1739655756994,0.7669,2697.7,2696.7,0.73343604]
[1739655758743,0.7669,2697.6,2696.7,0.73343604]
[1739655760029,0.7669,2697.4,2696.7,0.73343604]
[1739655760547,0.7669,2697.4,2696.7,4.44166604]
[1739655761043,0.7669,2697.4,2696.7,0.73343604]
[1739655761423,0.7669,2697.4,2696.8,0.48124994]
[1739655762753,0.7669,2697.4,2696.9,0.7931]
[1739655762910,0.7669,2697.4,2697.0,3.70782]
[1739655763239,0.7669,2697.7,2697.1,3.74466259]
[1739655764701,0.7669,2697.7,2697.1,3.70759]
[1739655764901,0.7669,2697.7,2697.2,0.370759]
[1739655765614,0.7669,2697.7,2697.3,3.70734]
[1739655765931,0.7669,2697.7,2697.4,0.03706879]
[1739655766331,0.7669,2697.7,2697.3,3.70734]
[1739655766512,0.7669,2697.7,2697.1,10.24824037]
[1739655766695,0.7669,2697.7,2697.1,6.54059037]
[1739655766893,0.7669,2697.7,2697.2,0.65405904]
[1739655769035,0.7669,2697.7,2697.1,2.83299037]
[1739655769949,0.7669,2697.7,2696.9,4.50095]
[1739655770631,0.7669,2697.7,2696.9,3.70785]
[1739655775528,0.7669,2697.7,2696.8,3.55895111]
[1739655775731,0.7669,2697.7,2696.8,2.83299037]
[1739655775923,0.7669,2697.7,2696.9,0.80601264]
[1739655777419,0.7669,2697.7,2697.0,3.70769]
[1739655777623,0.7669,2697.7,2696.9,0.80601264]
[1739655778456,0.7669,2697.7,2697.1,3.70765]
[1739655780376,0.7669,2697.7,2697.2,0.0370706]
[1739655780529,0.7669,2697.7,2697.3,0.37447206]
[1739655780967,0.757,2698.3,2697.5,3.70702]
[1739655781192,0.757,2698.3,2697.5,3.74408414]
[1739655781470,0.757,2698.3,2697.7,3.70684]
[1739655781676,0.757,2698.3,2697.8,0.03706288]
[1739655781893,0.757,2698.3,2697.5,3.70702]
[1739655782030,0.757,2698.3,2697.6,0.73256104]
[1739655783160,0.757,2698.3,2697.3,0.37447206]
[1739655783356,0.787,2698.2,2697.3,0.37447206]
[1739655785773,0.787,2698.2,2697.3,0.37447206]
[1739655788763,0.82490637,2698.2,2697.3,0.37447206]
[1739655789997,0.787,2698.2,2697.3,0.37447206]
[1739655790348,0.787,2698.2,2697.3,4.08188206]
[1739655790586,0.787,2698.1,2697.1,6.54058037]
[1739655790791,0.03790637,2698.0,2697.1,6.54058037]
[1739655791099,0.787,2697.9,2697.1,6.54058037]
[1739655792804,0.787,2697.9,2697.2,3.70748]
[1739655794130,0.787,2697.9,2697.1,6.54058037]
[1739655794426,0.787,2697.9,2697.1,1.26033203]
[1739655794725,0.787,2697.9,2697.2,3.70753]
[1739655795897,0.787,2697.9,2697.0,3.70778]
[1739655796112,0.787,2697.9,2697.1,3.70761]
[1739655796393,0.787,2697.9,2697.0,3.70775]
[1739655796602,0.787,2697.9,2697.0,3.70773]
[1739655796801,0.787,2697.9,2697.1,0.60625999]
[1739655797646,0.768,2697.8,2697.1,0.60625999]
[1739655799799,0.18791709,2697.6,2697.1,0.60625999]
[1739655800194,0.768,2697.5,2697.1,0.60625999]
[1739655800405,0.768,2697.5,2697.1,4.31390999]
[1739655800616,0.768,2697.5,2697.2,0.802164]
[1739655802323,0.768,2697.5,2697.0,3.70773]
[1739655802657,0.768,2697.5,2697.1,3.7076]
[1739655802834,0.768,2697.5,2697.2,3.74457065]
[1739655803633,0.768,2697.7,2697.3,3.70739]
[1739655804003,0.768,2697.7,2697.2,3.74453065]
[1739655804214,0.768,2697.7,2697.3,1.1076821]
[1739655805233,0.768,2697.7,2697.1,3.7076]
[1739655805405,0.768,2697.7,2697.0,3.7078]
[1739655805606,0.768,2697.7,2697.2,3.70754]
[1739655805817,0.768,2697.7,2697.3,0.03707145]
[1739655806035,0.768,2697.7,2697.2,3.74452038]
[1739655806215,0.768,2697.7,2697.3,0.45362204]
[1739655806533,0.768,2697.7,2697.3,4.16101204]
[1739655808652,0.768,2697.7,2697.4,3.70723]
[1739655809010,0.768,2697.7,2697.3,4.16101204]
[1739655810046,0.768,2698.1,2697.4,3.70718]
[1739655810350,0.768,2698.1,2697.6,3.70695]
[1739655812071,0.768,2698.1,2697.8,3.70661]
[1739655812220,0.768,2698.1,2697.9,0.0370617]
[1739655812530,0.768,2698.1,2697.8,3.70661]
[1739655813343,0.768,2698.1,2697.7,2.83299037]
[1739655813540,0.768,2698.1,2697.5,0.7868192]
[1739655814752,0.768,2698.1,2697.3,0.45362204]
[1739655815013,0.768,2698.1,2697.1,2.83299037]
[1739655815217,0.8258,2697.9,2697.0,3.70773]
[1739655815418,0.8258,2697.9,2697.3,3.70739]
[1739655815632,0.8258,2697.9,2697.4,0.03706847]
[1739655815831,0.8258,2697.9,2697.5,0.37443685]
[1739655816047,0.8258,2697.9,2697.5,3.70702]
[1739655816229,0.8258,2698.3,2697.7,3.70684]
[1739655819323,0.8258,2698.3,2697.8,0.0370623]
[1739655819650,0.8258,2698.3,2697.8,3.7067]
[1739655822260,0.005,2698.4,2697.9,3.70651]
[1739655822426,0.005,2698.4,2698.0,0.74502701]
[1739655823270,0.005,2698.4,2698.0,4.45146701]
[1739655823950,0.005,2698.4,2698.1,4.49939]
[1739655824464,0.005,2698.4,2698.2,0.03705665]
[1739655824771,0.005,2698.4,2698.1,4.49939]
[1739655824942,0.005,2698.4,2698.2,0.8950857]
[1739655826057,0.7922,2698.3,2697.8,4.49973]
[1739655826226,0.7922,2698.3,2697.6,3.70691]
[1739655826960,0.7922,2698.3,2697.6,3.7069]
[1739655827166,0.7922,2698.3,2697.7,3.70677]
[1739655827324,0.7922,2698.3,2697.8,0.66746892]
[1739655827934,0.7922,2698.3,2697.8,0.70453192]
[1739655828445,0.7922,2698.3,2697.8,0.66746892]
[1739655830655,0.7922,2698.3,2697.4,2.83299037]
[1739655830964,0.7922,2698.3,2697.3,4.4941]
[1739655831326,0.7922,2698.3,2697.4,3.70722]
[1739655831527,0.7922,2698.3,2697.4,7.41437]
[1739655831728,0.7922,2698.3,2697.4,3.70715]
[1739655831929,0.7922,2698.3,2697.4,4.527284]
[1739655833459,0.7922,2698.3,2697.4,8.234444]
[1739655833765,0.7922,2698.3,2697.5,3.7071]
[1739655833961,0.7922,2698.3,2697.6,3.70694]
[1739655834130,0.7922,2698.3,2697.6,0.7867]
[1739655834330,0.7922,2698.3,2697.5,3.70701]
[1739655834331,0.7922,2698.3,2697.7,0.449371]
[1739655836565,0.03790637,2698.2,2697.7,0.449371]
[1739655836744,0.7922,2698.2,2697.4,4.527364]
[1739655838774,0.7922,2698.2,2697.4,7.39742941]
[1739655839077,0.7922,2698.2,2697.7,3.7068]
[1739655839247,0.7922,2698.2,2697.6,3.74395424]
[1739655839445,0.7922,2698.2,2697.7,0.45306542]
[1739655840614,0.7922,2698.2,2697.4,7.36031437]
[1739655840767,0.7922,2698.2,2697.4,4.527324]
[1739655844678,0.7922,2698.2,2697.4,0.820134]
[1739655844888,0.7922,2698.2,2697.3,3.70736]
[1739655845178,0.7922,2698.2,2697.5,3.70703]
[1739655845344,0.7922,2698.2,2697.6,3.70698]
[1739655847280,0.7922,2698.2,2697.5,0.8097]
[1739655847582,0.7922,2698.2,2697.4,6.54017037]
[1739655847784,0.7922,2698.2,2697.5,0.73498704]
[1739655855580,0.005,2698.4,2697.2,3.70745]
[1739655855581,0.81770637,2698.1,2697.2,3.70745]
[1739655855890,0.7798,2698.1,2697.2,3.70745]
[1739655856249,0.7798,2698.1,2697.2,3.74451769]
[1739655856454,0.7798,2698.1,2697.2,0.55]
[1739655856654,0.7798,2698.1,2697.5,3.70703]
[1739655856854,0.7798,2698.1,2697.6,0.445773]
[1739655862991,0.7798,2698.1,2697.2,4.45823]
[1739655863198,0.7798,2698.1,2697.2,3.70753]
[1739655864084,0.7837,2697.9,2697.2,3.70753]
[1739655865587,0.7837,2697.9,2697.2,3.70747]
[1739655867497,0.7837,2697.9,2697.1,2.83299037]
[1739655867694,0.7837,2697.9,2697.2,0.776209]
[1739655867991,0.7837,2697.9,2697.2,0.73913804]
[1739655868296,0.7837,2697.9,2697.0,0.1]
[1739655870979,0.7837,2697.9,2697.0,0.13707271]
[1739655871181,0.7837,2697.9,2697.0,0.1]
[1739655872897,5.99482117,2697.9,2697.0,0.1]
[1739655873269,0.7776,2697.7,2697.0,0.1]
[1739655873579,0.03790637,2697.6,2697.0,0.1]
[1739655873781,0.7776,2697.5,2697.0,0.1]
[1739655875779,0.7776,2697.5,2697.0,3.80778]
[1739655876807,0.7776,2697.5,2697.0,3.8077]
[1739655877018,0.7776,2697.5,2697.0,1.21785904]
[1739655877711,0.7776,2697.5,2697.0,4.92566904]
[1739655877915,0.7776,2697.5,2697.0,1.21785904]
[1739655882506,0.7776,2697.5,2697.0,4.92565904]
[1739655883028,0.7776,2697.5,2697.0,1.21785904]
[1739655884123,0.7776,2697.5,2697.0,0.1]
[1739655887343,0.81550637,2697.5,2697.0,0.1]
[1739655887745,0.7776,2697.5,2697.0,0.1]
[1739655901724,0.7776,2697.5,2697.0,1.47239632]
[1739655904730,0.7776,2697.5,2697.0,0.1]
[1739655909069,0.7776,2697.5,2697.0,5.69825095]
[1739655909754,0.7776,2697.5,2697.0,1.99044095]
[1739655912374,0.7776,2697.5,2697.2,1.37239632]
[1739655913442,5.3861,2697.5,2697.2,1.37239632]
[1739655915935,5.3861,2697.5,2697.0,1.99044095]
[1739655916170,5.3861,2697.5,2697.0,5.69817095]
[1739655916387,5.3861,2697.5,2697.1,0.9406041]
[1739655919474,5.3861,2697.5,2697.0,1.99044095]
[1739655919671,5.3861,2697.5,2697.0,1.47239632]
[1739655920274,5.3861,2697.5,2697.0,1.50947068]
[1739655920475,5.3861,2697.5,2697.0,5.21723068]
[1739655921371,5.3861,2697.5,2697.2,1.37239632]
[1739655921671,4.6085,2697.5,2697.4,5.07966632]
[1739655921874,4.6085,2697.5,2697.4,6.03689995]
[1739655923165,4.6085,2697.5,2697.4,6.82209995]
[1739655924560,4.6085,2697.5,2697.4,7.37209995]
[1739655932299,4.6085,2697.5,2697.4,7.43044376]
[1739655932596,0.005,2698.4,2697.5,1.86558438]
[1739655932766,0.005,2698.4,2698.3,7.20262264]
[1739655932966,1e-05,2698.4,2698.3,19.16505833]
[1739655933168,0.7709,2699.5,2699.3,3.70455]
[1739655933363,1.80231399,2700.2,2699.8,3.70397]
[1739655933364,0.7709,2699.9,2699.8,3.70397]
[1739655933698,1.0131365,2700.2,2700.0,3.7037]
[1739655933699,0.7709,2700.2,2700.0,3.7037]
[1739655933889,0.7709,2700.5,2700.0,6.52811208]
[1739655934065,0.7709,2700.5,2700.0,6.58403396]
[1739655942706,0.7709,2700.5,2700.0,7.98320536]
[1739655948524,0.7709,2700.5,2700.0,8.53320536]
[1739655948825,0.18591214,2701.6,2700.0,8.53320536]
[1739655948826,0.8301,2701.7,2701.5,3.70163]
[1739655949001,0.8301,2701.7,2701.3,3.70181]
[1739655949321,0.8301,2701.7,2701.6,0.05402516]
[1739655949523,5.21112117,2702.7,2701.6,2.82441208]
[1739655949688,0.8301,2702.6,2701.6,2.87843724]
[1739655950025,0.8301,2702.5,2701.6,2.87843724]
[1739655950208,0.8301,2702.5,2701.6,0.05402516]
[1739655950413,0.86800637,2702.5,2701.6,0.05402516]
[1739655950590,0.8301,2702.3,2701.3,2.82441208]
[1739655950790,0.8301,2702.3,2701.4,3.75549774]
[1739655950995,0.8301,2702.3,2701.4,0.05371774]
[1739655951415,0.8301,2702.3,2701.4,3.75549774]
[1739655951718,0.8301,2702.3,2701.4,0.05371774]
[1739655952326,0.86800637,2702.2,2701.4,0.05371774]
[1739655952525,0.86800637,2702.2,2701.1,3.70214]
[1739655952731,0.86800637,2702.2,2701.5,0.05371597]
[1739655953031,0.86800637,2702.2,2701.6,0.05117928]
[1739655953199,3.0,2702.1,2701.6,0.05117928]
[1739655953398,1.73801275,2702.0,2701.0,6.52671208]
[1739655953601,1.73801275,2702.0,2701.1,0.05118809]
[1739655954130,0.8301,2701.9,2701.1,0.05118809]
[1739655954908,0.86800637,2701.8,2701.1,0.05118809]
[1739655955112,0.86800637,2701.8,2700.4,2.82441208]
[1739655955312,0.8301,2701.6,2700.4,2.82441208]
[1739655955534,0.03790637,2701.5,2700.5,0.05119867]
[1739655955862,0.8301,2701.4,2700.2,3.70334]
[1739655956036,0.8301,2701.4,2700.6,0.0511969]
[1739655956329,0.8301,2701.4,2700.3,3.70329]
[1739655956636,1.01063354,2701.4,2700.4,6.52748208]
[1739655956819,3.0,2701.3,2700.4,2.87561251]
[1739655957143,0.38680064,2701.2,2700.4,2.87561251]
[1739655957348,1.01063354,2701.4,2700.4,2.87561251]
[1739655957747,1.01063354,2701.4,2700.5,3.70297]
[1739655957912,1.01063354,2701.4,2700.5,3.70291]
[1739655958101,1.01063354,2701.4,2700.6,0.05129899]
[1739655958301,1.01063354,2701.4,2700.6,3.75406899]
[1739655958911,0.8301,2701.4,2701.0,3.70231]
[1739655959134,0.8301,2701.4,2700.9,3.70235]
[1739655959347,0.8301,2701.4,2701.1,0.05125305]
[1739655959643,0.8301,2701.4,2701.2,0.05125129]
[1739655960023,0.8301,2701.4,2701.0,3.70227]
[1739655960222,0.8301,2701.4,2701.3,0.05124953]
[1739655960445,0.8301,2701.4,2701.0,6.52663208]
[1739655960763,0.8301,2701.4,2701.3,0.05124953]